lending/lending_fUSD_20240809
["ID","MTS","AMOUNT","RATE_DAILY","PERIOD"]
[334500872,1723169449202,-1753.13,0.00024398,5]
[334500873,1723169449212,-500.49258299,0.00024398,5]
[334500874,1723169449222,-500.95807071,0.00024398,5]
[334500875,1723169449231,-500.0,0.00024398,5]
[334500876,1723169449241,-501.83486366,0.00024398,5]
[334500877,1723169449250,-500.0,0.00024398,5]
[334500878,1723169449260,-639.1,0.00024398,5]
[334500879,1723169449271,-825.72,0.00024398,5]
[334500880,1723169449280,-500.87581018,0.00024398,5]
[334500881,1723169449290,-500.0,0.00024398,5]
[334500882,1723169449301,-1078.47,0.00024398,5]
[334500883,1723169449310,-500.54287383,0.00024398,5]
[334500884,1723169449319,-500.66550965,0.00024398,5]
[334500885,1723169449328,-2062.83,0.00024398,5]
[334500886,1723169449337,-501.43542578,0.00024398,5]
[334500887,1723169449347,-500.0,0.00024398,5]
[334500888,1723169449356,-575.24,0.00024398,5]
[334500889,1723169449365,-2890.09,0.00024398,5]
[334500890,1723169449375,-500.0,0.00024398,5]
[334500891,1723169449384,-3517.92,0.00024398,5]
[334500892,1723169449393,-500.73016114,0.00024398,5]
[334500893,1723169449403,-915.82,0.00024398,5]
[334500894,1723169449412,-500.0,0.00024398,5]
[334500895,1723169449421,-500.0,0.00024398,5]
[334500896,1723169449431,-2228.07,0.00024398,5]
[334500897,1723169449440,-500.0,0.00024398,5]
[334500898,1723169449450,-500.0,0.00024398,5]
[334500899,1723169449459,-500.0,0.00024398,5]
[334500900,1723169449468,-500.0,0.00024398,5]
[334500901,1723169449478,-869.65,0.00024398,5]
[334500902,1723169449487,-2511.65,0.00024398,5]
[334500903,1723169449497,-975.71,0.00024398,5]
[334500904,1723169449506,-926.84,0.00024398,5]
[334500905,1723169449515,-500.0,0.00024398,5]
[334500906,1723169449524,-500.0,0.00024398,5]
[334500907,1723169449534,-502.64975902,0.00024398,5]
[334500908,1723169449543,-3329.49,0.00024398,5]
[334500909,1723169449552,-2791.96,0.00024398,5]
[334500910,1723169449561,-500.0,0.00024398,5]
[334500911,1723169449571,-927.73,0.00024398,5]
[334500912,1723169449580,-1449.12,0.00024398,5]
[334500913,1723169449589,-500.0,0.00024398,5]
[334500914,1723169449598,-3758.88,0.00024398,5]
[334500915,1723169449607,-500.0,0.00024398,5]
[334500916,1723169449616,-500.0,0.00024398,5]
[334500917,1723169449626,-500.0,0.00024398,5]
[334500918,1723169449635,-3055.55,0.00024398,5]
[334500919,1723169449644,-500.0,0.00024398,5]
[334500920,1723169449653,-3201.67,0.00024398,5]
[334500921,1723169449662,-500.0,0.00024398,5]
[334500922,1723169449671,-2957.65,0.00024398,5]
[334500923,1723169449680,-500.0,0.00024398,5]
[334500924,1723169449690,-1217.55,0.00024398,5]
[334500925,1723169449699,-500.0,0.00024398,5]
[334500926,1723169449708,-616.62,0.00024398,5]
[334500927,1723169449718,-2616.64,0.00024398,5]
[334500928,1723169449727,-500.0,0.00024398,5]
[334500929,1723169449737,-150.0,0.00024398,2]
[334500930,1723169449746,-3863.95,0.00024398,5]
[334500931,1723169449756,-500.0,0.00024398,5]
[334500932,1723169449765,-500.0,0.00024398,5]
[334500933,1723169449781,-2523.12,0.00024398,5]
[334500934,1723169449790,-500.0,0.00024398,5]
[334500935,1723169449800,-3842.02,0.00024398,5]
[334500936,1723169449808,-500.0,0.00024398,5]
[334500937,1723169449817,-2715.27,0.00024398,5]
[334500938,1723169449826,-500.0,0.00024398,5]
[334500939,1723169449835,-683.81,0.00024398,5]
[334500940,1723169449845,-841.86,0.00024398,5]
[334500941,1723169449854,-554.8,0.00024398,5]
[334500942,1723169449863,-500.0,0.00024398,5]
[334500943,1723169449872,-1232.05,0.00024398,5]
[334500944,1723169449881,-1992.4,0.00024398,5]
[334500945,1723169449890,-500.0,0.00024398,5]
[334500946,1723169449900,-748.64,0.00024398,5]
[334500947,1723169449909,-500.0,0.00024398,5]
[334500948,1723169449919,-4428.65,0.00024398,5]
[334500949,1723169449929,-960.29728572,0.00024399,2]
[334500950,1723169449938,-501.16927232,0.00024399,5]
[334500951,1723169449947,-638.44855077,0.00024399,5]
[334500952,1723169449956,-500.11289832,0.00024399,5]
[334500953,1723169449965,-500.74600804,0.00024399,5]
[334500954,1723169449974,-501.13192706,0.00024399,5]
[334500955,1723169450068,-501.53526128,0.00024399,5]
[334500956,1723169450077,-500.4068882,0.00024399,5]
[334500957,1723169450087,-500.0,0.00024399,5]
[334500958,1723169450096,-501.3412645,0.00024399,5]
[334500959,1723169450108,-500.40984489,0.00024399,5]
[334500960,1723169450117,-500.26881081,0.00024399,5]
[334500961,1723169450126,-500.25016499,0.00024399,5]
[334500962,1723169450136,-500.0,0.00024399,5]
[334500963,1723169450145,-500.6619337,0.00024399,5]
[334500964,1723169450155,-500.47543824,0.00024399,5]
[334500965,1723169450164,-500.74669382,0.00024399,5]
[334500966,1723169450174,-500.0,0.00024399,5]
[334500967,1723169450183,-500.42913003,0.00024399,5]
[334500968,1723169450192,-500.69489855,0.00024399,5]
[334500969,1723169450202,-500.0,0.00024399,5]
[334500970,1723169450211,-500.18474901,0.00024399,5]
[334500971,1723169450221,-500.71491086,0.00024399,5]
[334500972,1723169450230,-500.32261093,0.00024399,5]
[334500973,1723169450239,-500.43861728,0.00024399,5]
[334500974,1723169450249,-500.12838167,0.00024399,5]
[334500975,1723169450259,-500.29847222,0.00024399,5]
[334500976,1723169450272,-399.99903602,0.00024399,5]
[334500977,1723169450281,-218.78066754,0.00024399,5]
[334500978,1723169450291,-501.28772103,0.00024399,5]
[334500979,1723169450300,-500.70461174,0.00024399,5]
[334500980,1723169450309,-500.22807401,0.00024399,5]
[334500981,1723169450319,-500.52866941,0.00024399,5]
[334500982,1723169450328,-301.08978079,0.00024399,5]
[334500983,1723169450338,-500.36709181,0.00024399,5]
[334500984,1723169450347,-500.19113598,0.00024399,5]
[334500985,1723169450357,-500.29221764,0.00024399,5]
[334500986,1723169450366,-500.0,0.00024399,5]
[334500987,1723169450375,-500.39181359,0.00024399,5]
[334500988,1723169450384,-500.20945064,0.00024399,5]
[334500989,1723169450394,-600.36695541,0.00024399,5]
[334500990,1723169450404,-500.0,0.00024399,5]
[334500991,1723169450413,-500.0,0.00024399,5]
[334500992,1723169450423,-544.41019506,0.00024399,5]
[334500993,1723169450433,-500.0,0.00024399,5]
[334500994,1723169450443,-397.33103431,0.00024399,5]
[334500995,1723169450453,-500.18946762,0.00024399,5]
[334500996,1723169450463,-504.15609989,0.00024399,5]
[334500997,1723169450472,-500.38847355,0.00024399,5]
[334500998,1723169450482,-500.0,0.00024399,5]
[334500999,1723169450491,-500.0,0.00024399,5]
[334501000,1723169450501,-500.0,0.00024399,5]
[334501001,1723169450511,-529.65143627,0.00024399,5]
[334501002,1723169450522,-500.0,0.00024399,5]
[334501003,1723169450531,-500.0,0.00024399,5]
[334501004,1723169450541,-500.0,0.00024399,5]
[334501005,1723169450552,-502.36360969,0.00024399,5]
[334501006,1723169450561,-500.0,0.00024399,5]
[334501007,1723169450570,-500.0,0.00024399,5]
[334501008,1723169450580,-483.92290019,0.00024399,5]
[334501009,1723169450590,-500.0,0.00024399,5]
[334501010,1723169450599,-500.0,0.00024399,5]
[334501011,1723169450609,-501.64237832,0.00024399,5]
[334501012,1723169450618,-500.0,0.00024399,5]
[334501013,1723169450635,-500.0,0.00024399,5]
[334501014,1723169450654,-500.0,0.00024399,5]
[334501015,1723169450671,-500.0,0.00024399,5]
[334501016,1723169450690,-500.0,0.00024399,5]
[334501017,1723169450710,-500.0,0.00024399,5]
[334501018,1723169450728,-500.0,0.00024399,5]
[334501019,1723169450747,-500.0,0.00024399,5]
[334501020,1723169450761,-502.18064385,0.00024399,5]
[334501021,1723169450777,-500.0,0.00024399,5]
[334501022,1723169450798,-500.0,0.00024399,5]
[334501023,1723169450816,-502.19781865,0.00024399,5]
[334501024,1723169450828,-339.50204812,0.00024399,5]
[334501025,1723169450846,-500.0,0.00024399,5]
[334501026,1723169450862,-500.0,0.00024399,5]
[334501027,1723169450879,-389.29909304,0.00024399,5]
[334501028,1723169450892,-500.0,0.00024399,5]
[334501029,1723169450906,-500.0,0.00024399,5]
[334501030,1723169450922,-500.0,0.00024399,5]
[334501031,1723169450937,-500.0,0.00024399,5]
[334501032,1723169450951,-328.76023469,0.00024399,5]
[334501033,1723169450967,-513.94222752,0.00024399,5]
[334501034,1723169450981,-208.6434193,0.00024399,5]
[334501035,1723169450995,-323.39717501,0.00024399,5]
[334501036,1723169451010,-500.0,0.00024399,5]
[334501037,1723169451026,-500.0,0.00024399,5]
[334501038,1723169451041,-620.9389924,0.00024399,5]
[334501039,1723169451056,-500.0,0.00024399,5]
[334501040,1723169451072,-500.0,0.00024399,5]
[334501041,1723169451087,-500.0,0.00024399,5]
[334501042,1723169451103,-500.0,0.00024399,5]
[334501043,1723169451118,-500.0,0.00024399,5]
[334501044,1723169451133,-469.40539302,0.00024399,5]
[334501045,1723169451147,-538.16213055,0.00024399,5]
[334501046,1723169451162,-2978.6,0.00024399,5]
[334501047,1723169451178,-458.56259299,0.00024399,5]
[334501048,1723169451192,-2469.61,0.00024399,5]
[334501049,1723169451207,-858.14,0.00024399,5]
[334501050,1723169451222,-1327.89,0.00024399,5]
[334501051,1723169451238,-500.0,0.00024399,5]
[334501052,1723169451252,-348.30497803,0.00024399,5]
[334501053,1723169451269,-722.2,0.00024399,5]
[334501054,1723169451283,-1266.9,0.00024399,5]
[334501055,1723169451298,-500.0,0.00024399,5]
[334501056,1723169451312,-813.03,0.00024399,5]
[334501057,1723169451326,-605.88,0.00024399,5]
[334501058,1723169451340,-500.0,0.00024399,5]
[334501059,1723169451355,-500.0,0.00024399,5]
[334501060,1723169451369,-500.0,0.00024399,5]
[334501061,1723169451383,-500.0,0.00024399,5]
[334501062,1723169451396,-500.0,0.00024399,5]
[334501063,1723169451411,-708.1,0.00024399,5]
[334501064,1723169451425,-604.52,0.00024399,5]
[334501065,1723169451440,-500.0,0.00024399,5]
[334501066,1723169451454,-639.58,0.00024399,5]
[334501067,1723169451469,-1576.89,0.00024399,5]
[334501068,1723169451483,-500.0,0.00024399,5]
[334501069,1723169451499,-500.0,0.00024399,5]
[334501070,1723169451514,-500.0,0.00024399,5]
[334501071,1723169451533,-500.0,0.00024399,5]
[334501072,1723169451544,-500.0,0.00024399,5]
[334501073,1723169451682,-500.0,0.00024399,5]
[334501074,1723169451697,-1517.91,0.00024399,5]
[334501075,1723169451706,-793.65,0.00024399,5]
[334501076,1723169451715,-500.0,0.00024399,5]
[334501077,1723169451724,-806.06,0.00024399,5]
[334501078,1723169451734,-500.0,0.00024399,5]
[334501079,1723169451743,-500.0,0.00024399,5]
[334501080,1723169451751,-500.0,0.00024399,5]
[334501081,1723169451760,-500.0,0.00024399,5]
[334501082,1723169451770,-500.0,0.00024399,5]
[334501083,1723169451778,-500.0,0.00024399,5]
[334501084,1723169451787,-500.0,0.00024399,5]
[334501085,1723169451796,-500.0,0.00024399,5]
[334501086,1723169451806,-500.0,0.00024399,5]
[334501087,1723169451815,-500.0,0.00024399,5]
[334501088,1723169451824,-500.0,0.00024399,5]
[334501089,1723169451833,-500.0,0.00024399,5]
[334501090,1723169451843,-588.06,0.00024399,5]
[334501091,1723169451853,-579.54,0.00024399,5]
[334501092,1723169451862,-500.0,0.00024399,5]
[334501093,1723169451871,-801.48,0.00024399,5]
[334501094,1723169451881,-500.0,0.00024399,5]
[334501095,1723169451890,-648.1,0.00024399,5]
[334501096,1723169451899,-500.0,0.00024399,5]
[334501097,1723169451909,-500.0,0.00024399,5]
[334501098,1723169451918,-500.0,0.00024399,5]
[334501099,1723169451928,-696.32,0.00024399,5]
[334501100,1723169451937,-500.0,0.00024399,5]
[334501101,1723169451946,-500.0,0.00024399,5]
[334501102,1723169451956,-762.8,0.00024399,5]
[334501103,1723169451965,-500.0,0.00024399,5]
[334501104,1723169451974,-500.0,0.00024399,5]
[334501105,1723169451984,-1413.33,0.00024399,5]
[334501106,1723169451993,-500.0,0.00024399,5]
[334501107,1723169452003,-725.45,0.00024399,5]
[334501108,1723169452012,-500.0,0.00024399,5]
[334501109,1723169452025,-1054.89,0.00024399,5]
[334501110,1723169452035,-500.0,0.00024399,5]
[334501111,1723169452044,-500.0,0.00024399,5]
[334501112,1723169452053,-900.28,0.00024399,5]
[334501113,1723169452063,-670.2,0.00024399,5]
[334501114,1723169452074,-500.0,0.00024399,5]
[334501115,1723169452083,-500.0,0.00024399,5]
[334501116,1723169452093,-500.0,0.00024399,5]
[334501117,1723169452104,-898.02,0.00024399,5]
[334501118,1723169452114,-500.0,0.00024399,5]
[334501119,1723169452123,-500.0,0.00024399,5]
[334501120,1723169452132,-500.0,0.00024399,5]
[334501121,1723169452141,-500.0,0.00024399,5]
[334501122,1723169452151,-500.0,0.00024399,5]
[334501123,1723169452159,-1076.54,0.00024399,5]
[334501124,1723169452169,-960.47,0.00024399,5]
[334501125,1723169452178,-500.0,0.00024399,5]
[334501126,1723169452188,-795.68,0.00024399,5]
[334501127,1723169452197,-1012.51,0.00024399,5]
[334501128,1723169452207,-500.0,0.00024399,5]
[334501129,1723169452216,-500.0,0.00024399,5]
[334501130,1723169452226,-868.85,0.00024399,5]
[334501131,1723169452236,-1150.69,0.00024399,5]
[334501132,1723169452245,-500.0,0.00024399,5]
[334501133,1723169452255,-500.0,0.00024399,5]
[334501134,1723169452264,-500.0,0.00024399,5]
[334501135,1723169452275,-500.0,0.00024399,5]
[334501136,1723169452284,-500.0,0.00024399,5]
[334501137,1723169452293,-548.05105162,0.00024399,5]
[334501138,1723169452302,-500.0,0.00024399,5]
[334501139,1723169452311,-500.0,0.00024399,5]
[334501140,1723169452320,-500.0,0.00024399,5]
[334501141,1723169452329,-500.0,0.00024399,5]
[334501142,1723169452338,-228.47992864,0.00024399,5]
[334501143,1723169452348,-282.98484246,0.00024399,5]
[334501144,1723169452357,-475.07449114,0.00024399,5]
[334501145,1723169452366,-500.0,0.00024399,5]
[334501146,1723169452375,-500.0,0.00024399,5]
[334501147,1723169452384,-500.0,0.00024399,5]
[334501148,1723169452393,-501.36705951,0.00024399,5]
[334501149,1723169452402,-500.0,0.00024399,5]
[334501150,1723169452412,-198.73227431,0.00024399,5]
[334501151,1723169452421,-569.3540684,0.00024399,5]
[334501152,1723169452430,-263.4612502,0.00024399,5]
[334501153,1723169452440,-500.0,0.00024399,5]
[334501154,1723169452449,-500.0,0.00024399,5]
[334501155,1723169452459,-500.0,0.00024399,5]
[334501156,1723169452468,-500.0,0.00024399,5]
[334501157,1723169452477,-500.0,0.00024399,5]
[334501158,1723169452486,-500.0,0.00024399,5]
[334501159,1723169452495,-500.0,0.00024399,5]
[334501160,1723169452504,-500.0,0.00024399,5]
[334501161,1723169452513,-748.64,0.00024399,5]
[334501162,1723169452523,-1622.84542398,0.000244,2]
[334501163,1723169452533,-3365.807172,0.000244,2]
[334501164,1723169452542,-1071.60443349,0.000244,2]
[334501165,1723169452551,-177.77108589,0.000244,2]
[334501166,1723169452560,-500.0,0.000244,8]
[334501167,1723169452569,-960.29728572,0.000244,2]
[334501168,1723169452578,-320.76739224,0.000244,2]
[334501169,1723169452587,-265.73,0.00024403,2]
[334501170,1723169452596,-150.0,0.00024406,2]
[334501171,1723169452606,-150.0,0.00024406,2]
[334501172,1723169452615,-150.0,0.00024409,2]
[334501173,1723169452624,-200.36575078,0.00024409,2]
[334501174,1723169452633,-150.0,0.00024419,2]
[334501175,1723169452642,-150.0,0.0002442,2]
[334501176,1723169452652,-150.0,0.00024421,2]
[334501177,1723169452661,-1500.0,0.00024422,2]
[334501178,1723169452670,-1500.0,0.00024428,2]
[334501179,1723169452680,-150.0,0.0002443,2]
[334501180,1723169452690,-150.0,0.0002443,2]
[334501181,1723169452699,-150.0,0.00024431,2]
[334501182,1723169452709,-150.0,0.00024434,2]
[334501183,1723169452719,-150.0,0.00024436,2]
[334501184,1723169452729,-150.0,0.00024436,2]
[334501185,1723169452740,-150.0,0.0002444,2]
[334501186,1723169452751,-150.0,0.0002444,2]
[334501187,1723169452760,-150.0,0.00024441,2]
[334501188,1723169452772,-500.0,0.00024444,5]
[334501189,1723169452789,-500.0,0.00024444,5]
[334501190,1723169452799,-504.49754201,0.00024444,5]
[334501191,1723169452808,-1507.18,0.00024444,5]
[334501192,1723169452818,-500.0,0.00024444,5]
[334501193,1723169452827,-506.45657253,0.00024444,5]
[334501194,1723169452836,-210.05917559,0.00024444,5]
[334501195,1723169452845,-500.0,0.00024444,5]
[334501196,1723169452855,-500.0,0.00024444,5]
[334501197,1723169452865,-506.98663435,0.00024444,5]
[334501198,1723169452874,-500.0,0.00024444,5]
[334501199,1723169452883,-916.61,0.00024444,5]
[334501200,1723169452893,-500.0,0.00024444,2]
[334501201,1723169452902,-500.0,0.00024444,5]
[334501202,1723169452911,-3202.97,0.00024444,5]
[334501203,1723169452920,-900.44,0.00024444,5]
[334501204,1723169452930,-179.91105577,0.00024444,5]
[334501205,1723169452940,-543.68,0.00024444,5]
[334501206,1723169452949,-500.0,0.00024444,5]
[334501207,1723169452959,-150.0,0.00024446,2]
[334501208,1723169452968,-150.0,0.00024447,2]
[334501209,1723169452978,-150.0,0.00024452,2]
[334501210,1723169452989,-150.0,0.00024455,2]
[334501211,1723169452999,-150.0,0.00024455,2]
[334501212,1723169453009,-150.0,0.00024459,2]
[334501213,1723169453018,-1500.0,0.0002446,2]
[334501214,1723169453032,-150.0,0.00024463,2]
[334501215,1723169453041,-1500.0,0.00024464,2]
[334501216,1723169453051,-150.0,0.00024464,2]
[334501217,1723169453060,-150.0,0.00024465,2]
[334501218,1723169453070,-150.0,0.00024468,2]
[334501219,1723169453080,-150.0,0.0002447,2]
[334501220,1723169453090,-150.0,0.00024471,2]
[334501221,1723169453100,-150.0,0.00024471,2]
[334501222,1723169453110,-150.0,0.00024472,2]
[334501223,1723169453119,-150.0,0.00024473,2]
[334501224,1723169453130,-201.94159808,0.00024473,2]
[334501225,1723169453139,-150.0,0.00024475,2]
[334501226,1723169453148,-150.0,0.00024476,2]
[334501227,1723169453158,-1500.0,0.00024478,2]
[334501228,1723169453167,-150.0,0.0002448,2]
[334501229,1723169453176,-500.0,0.00024487,5]
[334501230,1723169453185,-2978.6,0.00024487,5]
[334501231,1723169453195,-2469.61,0.00024487,5]
[334501232,1723169453204,-1327.89,0.00024487,5]
[334501233,1723169453214,-500.0,0.00024487,5]
[334501234,1723169453223,-6456.68,0.00024487,5]
[334501235,1723169453233,-500.0,0.00024487,5]
[334501236,1723169453242,-500.0,0.00024487,5]
[334501237,1723169453251,-500.0,0.00024487,5]
[334501238,1723169453260,-500.0,0.00024487,5]
[334501239,1723169453278,-500.0,0.00024487,5]
[334501240,1723169453288,-500.0,0.00024487,5]
[334501241,1723169453297,-2697.27,0.00024487,5]
[334501242,1723169453307,-1161.67,0.00024487,5]
[334501243,1723169453316,-500.0,0.00024487,5]
[334501244,1723169453325,-3409.1,0.00024487,5]
[334501245,1723169453335,-1406.27,0.00024487,5]
[334501246,1723169453345,-2753.1,0.00024487,5]
[334501247,1723169453355,-2170.45,0.00024487,5]
[334501248,1723169453366,-801.48,0.00024487,5]
[334501249,1723169453375,-542.44,0.00024487,5]
[334501250,1723169453385,-2522.23,0.00024487,5]
[334501251,1723169453395,-3235.97,0.00024487,5]
[334501252,1723169453406,-696.32,0.00024487,5]
[334501253,1723169453416,-505.70257944,0.00024487,5]
[334501254,1723169453426,-500.0,0.00024487,5]
[334501255,1723169453535,-1200.24,0.00024487,5]
[334501256,1723169453545,-500.0,0.00024487,5]
[334501257,1723169453554,-500.0,0.00024487,5]
[334501258,1723169453563,-990.0,0.00024487,5]
[334501259,1723169453573,-604.58678966,0.00024487,5]
[334501260,1723169453583,-500.0,0.00024487,5]
[334501261,1723169453592,-500.0,0.00024487,5]
[334501262,1723169453601,-4373.18,0.00024487,5]
[334501263,1723169453610,-1163.23,0.00024487,5]
[334501264,1723169453619,-995.57,0.00024487,5]
[334501265,1723169453639,-1054.89,0.00024487,5]
[334501266,1723169453649,-1323.81,0.00024487,5]
[334501267,1723169453658,-500.0,0.00024487,5]
[334501268,1723169453667,-738.6,0.00024487,5]
[334501269,1723169453676,-900.28,0.00024487,5]
[334501270,1723169453686,-500.0,0.00024487,5]
[334501271,1723169453695,-500.0,0.00024487,5]
[334501272,1723169453705,-500.0,0.00024487,5]
[334501273,1723169453715,-1354.12,0.00024487,5]
[334501274,1723169453724,-500.0,0.00024487,5]
[334501275,1723169453734,-500.0,0.00024487,5]
[334501276,1723169453744,-500.0,0.00024487,5]
[334501277,1723169453753,-500.0,0.00024487,5]
[334501278,1723169453762,-1332.41,0.00024487,5]
[334501279,1723169453772,-500.0,0.00024487,5]
[334501280,1723169453781,-500.0,0.00024487,5]
[334501281,1723169453791,-500.0,0.00024487,5]
[334501282,1723169453801,-965.55,0.00024487,5]
[334501283,1723169453810,-500.0,0.00024487,5]
[334501284,1723169453820,-500.0,0.00024487,5]
[334501285,1723169453829,-710.5,0.00024487,5]
[334501286,1723169453839,-223.17148559,0.00024487,5]
[334501287,1723169453848,-1117.97,0.00024487,5]
[334501288,1723169453857,-500.0,0.00024487,5]
[334501289,1723169453867,-1473.13,0.00024487,5]
[334501290,1723169453876,-500.0,0.00024487,5]
[334501291,1723169453886,-1301.42,0.00024487,5]
[334501292,1723169453896,-579.67476037,0.00024487,5]
[334501293,1723169453906,-1629.88,0.00024487,5]
[334501294,1723169453916,-500.0,0.00024487,5]
[334501295,1723169453926,-505.49034397,0.00024487,5]
[334501296,1723169453936,-500.0,0.00024487,5]
[334501297,1723169453946,-500.0,0.00024487,5]
[334501298,1723169453956,-1076.54,0.00024487,5]
[334501299,1723169453966,-500.0,0.00024487,5]
[334501300,1723169453976,-500.0,0.00024487,5]
[334501301,1723169453986,-960.47,0.00024487,5]
[334501302,1723169453996,-1862.9,0.00024487,5]
[334501303,1723169454005,-675.12,0.00024487,5]
[334501304,1723169454015,-500.0,0.00024487,5]
[334501305,1723169454028,-500.0,0.00024487,5]
[334501306,1723169454037,-500.0,0.00024487,5]
[334501307,1723169454048,-795.68,0.00024487,5]
[334501308,1723169454057,-1813.33,0.00024487,5]
[334501309,1723169454067,-500.0,0.00024487,5]
[334501310,1723169454077,-1012.51,0.00024487,5]
[334501311,1723169454087,-500.0,0.00024487,5]
[334501312,1723169454097,-500.0,0.00024487,5]
[334501313,1723169454107,-332.09401689,0.00024487,5]
[334501314,1723169454117,-500.0,0.00024487,5]
[334501315,1723169454128,-500.0,0.00024487,5]
[334501316,1723169454137,-868.85,0.00024487,5]
[334501317,1723169454146,-500.0,0.00024487,5]
[334501318,1723169454155,-500.0,0.00024487,5]
[334501319,1723169454165,-505.61877683,0.00024487,5]
[334501320,1723169454175,-500.0,0.00024487,5]
[334501321,1723169454186,-500.0,0.00024487,5]
[334501322,1723169454197,-500.0,0.00024487,5]
[334501323,1723169454208,-500.0,0.00024487,5]
[334501324,1723169454219,-500.0,0.00024487,5]
[334501325,1723169454228,-500.0,0.00024487,5]
[334501326,1723169454238,-500.0,0.00024487,5]
[334501327,1723169454249,-500.0,0.00024487,5]
[334501328,1723169454260,-500.0,0.00024487,5]
[334501329,1723169454271,-559.86,0.00024487,5]
[334501330,1723169454280,-500.0,0.00024487,5]
[334501331,1723169454290,-500.0,0.00024487,5]
[334501332,1723169454299,-500.0,0.00024487,5]
[334501333,1723169454311,-500.0,0.00024487,5]
[334501334,1723169454320,-151.9635925,0.00024487,5]
[334501335,1723169454330,-500.0,0.00024487,5]
[334501336,1723169454340,-500.0,0.00024487,5]
[334501337,1723169454351,-500.0,0.00024487,5]
[334501338,1723169454361,-500.0,0.00024487,5]
[334501339,1723169454370,-500.0,0.00024487,5]
[334501340,1723169454380,-1115.79,0.00024487,5]
[334501341,1723169454389,-2618.81,0.00024487,5]
[334501342,1723169454398,-2320.16,0.00024487,5]
[334501343,1723169454408,-1133.13,0.00024487,5]
[334501344,1723169454417,-1043.66,0.00024487,5]
[334501345,1723169454428,-2512.93,0.00024487,5]
[334501346,1723169454438,-920.46,0.00024487,5]
[334501347,1723169454449,-500.0,0.00024487,5]
[334501348,1723169454459,-2714.88,0.00024487,5]
[334501349,1723169454470,-772.42,0.00024487,5]
[334501350,1723169454482,-2107.73,0.00024487,5]
[334501351,1723169454494,-500.0,0.00024487,5]
[334501352,1723169454505,-807.03,0.00024487,5]
[334501353,1723169454515,-500.0,0.00024487,5]
[334501354,1723169454525,-887.09,0.00024487,5]
[334501355,1723169454534,-500.0,0.00024487,5]
[334501356,1723169454543,-676.5,0.00024487,5]
[334501357,1723169454553,-1827.1,0.00024487,5]
[334501358,1723169454563,-2307.17,0.00024487,5]
[334501359,1723169454574,-500.0,0.00024487,5]
[334501360,1723169454584,-1731.14,0.00024487,5]
[334501361,1723169454593,-500.0,0.00024487,5]
[334501362,1723169454603,-891.22,0.00024487,5]
[334501363,1723169454612,-500.0,0.00024487,5]
[334501364,1723169454621,-500.0,0.00024487,5]
[334501365,1723169454630,-2387.7,0.00024487,5]
[334501366,1723169454640,-819.61,0.00024487,5]
[334501367,1723169454650,-500.0,0.00024487,5]
[334501368,1723169454659,-3928.43,0.00024487,5]
[334501369,1723169454668,-500.0,0.00024487,5]
[334501370,1723169454678,-501.81103637,0.00024487,5]
[334501371,1723169454687,-608.28,0.00024487,5]